[Event "Titled Tuesday Blitz August 09 Early 2022"]
[White "Kilic, Eray"]
[Black "Khripachenko, Alexander"]
[WhiteFideId "44517173"]
[BlackFideId "54184975"]
[WhiteElo "1776"]
[BlackElo "2233"]
[Result "1-0"]
[Round "09"]
[TimeControl "180+1"]
[Date "2022.08.09"]
[WhiteClock "0:00:33"]
[BlackClock "0:00:39"]

1. e4 {[%clk 0:03:00]}  c6 {[%clk 0:02:59]} 2. Nc3 {[%clk 0:03:01]}  d5 {[%clk 0:02:58]} 3. Nf3 {[%clk 0:03:01]}  dxe4 {[%clk 0:02:58]} 4. Nxe4 {[%clk 0:03:02]}  Nf6 {[%clk 0:02:57]} 5. Nxf6+ {[%clk 0:03:02]}  exf6 {[%clk 0:02:57]} 6. d4 {[%clk 0:03:03]}  Bd6 {[%clk 0:02:58]} 7. Bd3 {[%clk 0:03:04]}  O-O {[%clk 0:02:58]} 8. O-O {[%clk 0:03:05]}  Na6 {[%clk 0:02:58]} 9. Re1 {[%clk 0:03:02]}  Nc7 {[%clk 0:02:58]} 10. h3 {[%clk 0:03:00]}  Re8 {[%clk 0:02:56]} 11. Rxe8+ {[%clk 0:03:00]}  Qxe8 {[%clk 0:02:56]} 12. c4 {[%clk 0:03:00]}  Be6 {[%clk 0:02:53]} 13. Be3 {[%clk 0:03:00]}  Qd7 {[%clk 0:02:51]} 14. Qf1 {[%clk 0:02:57]}  Bf5 {[%clk 0:02:50]} 15. Rd1 {[%clk 0:02:56]}  Re8 {[%clk 0:02:48]} 16. a3 {[%clk 0:02:45]}  h6 {[%clk 0:02:47]} 17. b4 {[%clk 0:02:43]}  Be4 {[%clk 0:02:47]} 18. Bxe4 {[%clk 0:02:41]}  Rxe4 {[%clk 0:02:48]} 19. Qd3 {[%clk 0:02:41]}  f5 {[%clk 0:02:46]} 20. Ne5 {[%clk 0:02:13]}  Qe7 {[%clk 0:02:19]} 21. f3 {[%clk 0:02:06]}  Rxe3 {[%clk 0:02:18]} 22. Qxe3 {[%clk 0:02:06]}  f6 {[%clk 0:02:19]} 23. c5 {[%clk 0:02:03]}  Bxe5 {[%clk 0:02:05]} 24. dxe5 {[%clk 0:02:02]}  Nd5 {[%clk 0:02:06]} 25. Qe2 {[%clk 0:01:26]}  fxe5 {[%clk 0:01:17]} 26. Re1 {[%clk 0:01:26]}  Nf4 {[%clk 0:01:11]} 27. Qa2+ {[%clk 0:01:03]}  Kh7 {[%clk 0:01:10]} 28. Qc2 {[%clk 0:00:56]}  g6 {[%clk 0:01:05]} 29. Qd2 {[%clk 0:00:37]}  Qg5 {[%clk 0:01:05]} 30. Kh2 {[%clk 0:00:34]}  Nd5 {[%clk 0:00:41]} 31. Qxg5 {[%clk 0:00:33]}  hxg5 {[%clk 0:00:42]} 32. Rxe5 {[%clk 0:00:34]}  Kg7 {[%clk 0:00:41]} 33. Re8 {[%clk 0:00:34]}  b6 {[%clk 0:00:39]} 34. Ra8 {[%clk 0:00:33]} 1-0


[Site "https://www.chess.com"]

[Event "Titled Tuesday Blitz August 09 Early 2022"]
[White "Kostiukov, Alexandr"]
[Black "Chyzy, Jakub"]
[WhiteFideId "14108100"]
[BlackFideId "21806209"]
[WhiteElo "2202"]
[BlackElo "2023"]
[Result "0-1"]
[Round "09"]
[TimeControl "180+1"]
[Date "2022.08.09"]
[WhiteClock "0:00:29"]
[BlackClock "0:00:10"]

1. g3 {[%clk 0:02:59]}  Nf6 {[%clk 0:03:00]} 2. Bg2 {[%clk 0:02:58]}  e5 {[%clk 0:02:59]} 3. c4 {[%clk 0:02:57]}  d5 {[%clk 0:02:58]} 4. cxd5 {[%clk 0:02:57]}  Nxd5 {[%clk 0:02:59]} 5. Nf3 {[%clk 0:02:57]}  Nc6 {[%clk 0:02:59]} 6. O-O {[%clk 0:02:55]}  Be6 {[%clk 0:02:59]} 7. d4 {[%clk 0:02:54]}  e4 {[%clk 0:02:48]} 8. Ng5 {[%clk 0:02:50]}  Nf6 {[%clk 0:02:38]} 9. Nxe4 {[%clk 0:02:36]}  Qxd4 {[%clk 0:02:32]} 10. Nxf6+ {[%clk 0:02:25]}  Qxf6 {[%clk 0:02:33]} 11. Nc3 {[%clk 0:02:24]}  Be7 {[%clk 0:02:27]} 12. Qa4 {[%clk 0:02:24]}  O-O {[%clk 0:02:22]} 13. Bf4 {[%clk 0:02:13]}  Bd6 {[%clk 0:02:03]} 14. Bxd6 {[%clk 0:02:01]}  cxd6 {[%clk 0:02:02]} 15. Bxc6 {[%clk 0:02:01]}  bxc6 {[%clk 0:02:03]} 16. Qxc6 {[%clk 0:02:01]}  d5 {[%clk 0:01:53]} 17. Nxd5 {[%clk 0:01:51]}  Qxb2 {[%clk 0:01:51]} 18. Nf4 {[%clk 0:01:48]}  Bxa2 {[%clk 0:01:44]} 19. h4 {[%clk 0:01:37]}  a5 {[%clk 0:01:41]} 20. Rac1 {[%clk 0:01:30]}  Qb4 {[%clk 0:01:24]} 21. Rc5 {[%clk 0:01:15]}  a4 {[%clk 0:00:38]} 22. Rg5 {[%clk 0:01:13]}  f6 {[%clk 0:00:36]} 23. Rb5 {[%clk 0:00:59]}  Qc4 {[%clk 0:00:30]} 24. Rc5 {[%clk 0:00:54]}  Qf7 {[%clk 0:00:24]} 25. Rd1 {[%clk 0:00:50]}  Ra7 {[%clk 0:00:16]} 26. Rd4 {[%clk 0:00:39]}  a3 {[%clk 0:00:16]} 27. Ra4 {[%clk 0:00:38]}  Bb3 {[%clk 0:00:11]} 28. Rxa7 {[%clk 0:00:35]}  Qxa7 {[%clk 0:00:12]} 29. Qc7 {[%clk 0:00:33]}  Qxc7 {[%clk 0:00:10]} 30. Rxc7 {[%clk 0:00:33]}  Ra8 {[%clk 0:00:10]} 31. Rc1 {[%clk 0:00:31]}  a2 {[%clk 0:00:10]} 32. Ra1 {[%clk 0:00:31]}  Bf7 {[%clk 0:00:10]} 33. Nd3 {[%clk 0:00:31]}  Rb8 {[%clk 0:00:10]} 34. Kg2 {[%clk 0:00:29]}  Rb1 {[%clk 0:00:10]} 0-1


[Site "https://www.chess.com"]

[Event "Titled Tuesday Blitz August 09 Early 2022"]
[White "Kravtsiv, Martyn"]
[Black "Samunenkov, Ihor"]
[WhiteFideId "14113147"]
[BlackFideId "14187086"]
[WhiteElo "2694"]
[BlackElo "2441"]
[Result "1-0"]
[Round "09"]
[TimeControl "180+1"]
[Date "2022.08.09"]
[WhiteClock "0:00:16"]
[BlackClock "0:00:07"]

1. e4 {[%clk 0:03:00]}  c6 {[%clk 0:03:00]} 2. Nf3 {[%clk 0:03:00]}  d5 {[%clk 0:03:00]} 3. d3 {[%clk 0:03:01]}  Qc7 {[%clk 0:02:59]} 4. Nc3 {[%clk 0:02:59]}  dxe4 {[%clk 0:02:58]} 5. Nxe4 {[%clk 0:02:58]}  Nf6 {[%clk 0:02:58]} 6. Qe2 {[%clk 0:02:59]}  Nbd7 {[%clk 0:02:48]} 7. g3 {[%clk 0:02:58]}  Nxe4 {[%clk 0:02:41]} 8. Qxe4 {[%clk 0:02:57]}  Nf6 {[%clk 0:02:09]} 9. Qe2 {[%clk 0:02:57]}  Bf5 {[%clk 0:02:08]} 10. Bg2 {[%clk 0:02:56]}  e6 {[%clk 0:02:07]} 11. O-O {[%clk 0:02:45]}  h6 {[%clk 0:02:05]} 12. b3 {[%clk 0:02:44]}  Be7 {[%clk 0:02:03]} 13. Bb2 {[%clk 0:02:44]}  O-O {[%clk 0:02:01]} 14. Kh1 {[%clk 0:02:40]}  c5 {[%clk 0:01:57]} 15. Rae1 {[%clk 0:02:35]}  Nd5 {[%clk 0:01:49]} 16. Ne5 {[%clk 0:02:21]}  Rad8 {[%clk 0:01:46]} 17. f4 {[%clk 0:02:17]}  Bh7 {[%clk 0:01:37]} 18. Ng4 {[%clk 0:02:13]}  Bf5 {[%clk 0:01:25]} 19. Ne5 {[%clk 0:01:58]}  Bh7 {[%clk 0:01:24]} 20. a3 {[%clk 0:01:55]}  Bd6 {[%clk 0:01:06]} 21. Ng4 {[%clk 0:01:48]}  Ne7 {[%clk 0:00:55]} 22. Ne3 {[%clk 0:01:38]}  Nc6 {[%clk 0:00:52]} 23. Nc4 {[%clk 0:01:33]}  Nd4 {[%clk 0:00:51]} 24. Qf2 {[%clk 0:01:32]}  Be7 {[%clk 0:00:49]} 25. b4 {[%clk 0:01:28]}  b6 {[%clk 0:00:38]} 26. Ne5 {[%clk 0:01:27]}  Bf6 {[%clk 0:00:37]} 27. Ng4 {[%clk 0:01:12]}  Be7 {[%clk 0:00:37]} 28. h3 {[%clk 0:01:10]}  Bf5 {[%clk 0:00:29]} 29. Ne5 {[%clk 0:01:09]}  Bh7 {[%clk 0:00:29]} 30. Kh2 {[%clk 0:01:08]}  Bf6 {[%clk 0:00:29]} 31. Kh1 {[%clk 0:00:50]}  Be7 {[%clk 0:00:29]} 32. g4 {[%clk 0:00:49]}  Rfe8 {[%clk 0:00:20]} 33. g5 {[%clk 0:00:46]}  h5 {[%clk 0:00:14]} 34. Bxd4 {[%clk 0:00:41]}  Rxd4 {[%clk 0:00:11]} 35. c3 {[%clk 0:00:41]}  Rdd8 {[%clk 0:00:10]} 36. Qf3 {[%clk 0:00:30]}  g6 {[%clk 0:00:07]} 37. b5 {[%clk 0:00:27]}  Bd6 {[%clk 0:00:07]} 38. Nc6 {[%clk 0:00:26]}  Rc8 {[%clk 0:00:06]} 39. a4 {[%clk 0:00:25]}  Bf8 {[%clk 0:00:07]} 40. Qe3 {[%clk 0:00:24]}  Bg7 {[%clk 0:00:07]} 41. Ne5 {[%clk 0:00:23]}  Rcd8 {[%clk 0:00:07]} 42. Bc6 {[%clk 0:00:22]}  Re7 {[%clk 0:00:07]} 43. Rf2 {[%clk 0:00:21]}  Rc8 {[%clk 0:00:04]} 44. Rd2 {[%clk 0:00:18]}  Rd8 {[%clk 0:00:04]} 45. Red1 {[%clk 0:00:18]}  Kf8 {[%clk 0:00:03]} 46. d4 {[%clk 0:00:17]}  cxd4 {[%clk 0:00:03]} 47. Rxd4 {[%clk 0:00:18]}  Rxd4 {[%clk 0:00:03]} 48. Qxd4 {[%clk 0:00:18]}  Bxe5 {[%clk 0:00:03]} 49. Qxe5 {[%clk 0:00:16]}  Qxe5 {[%clk 0:00:04]} 50. fxe5 {[%clk 0:00:17]}  Kg7 {[%clk 0:00:04]} 51. h4 {[%clk 0:00:15]}  Bg8 {[%clk 0:00:04]} 52. Rd8 {[%clk 0:00:15]}  Rc7 {[%clk 0:00:04]} 53. Kh2 {[%clk 0:00:15]}  Bh7 {[%clk 0:00:05]} 54. Kg3 {[%clk 0:00:15]}  Bg8 {[%clk 0:00:05]} 55. Kf4 {[%clk 0:00:15]}  Bh7 {[%clk 0:00:06]} 56. Ke3 {[%clk 0:00:16]}  Bg8 {[%clk 0:00:06]} 57. Kd4 {[%clk 0:00:16]}  Bh7 {[%clk 0:00:07]} 58. c4 {[%clk 0:00:16]}  Bg8 {[%clk 0:00:07]} 59. c5 {[%clk 0:00:16]} 1-0


[Site "https://www.chess.com"]

[Event "Titled Tuesday Blitz August 09 Early 2022"]
[White "Krzywda, Andrzej"]
[Black "Kazancev, Valerij M"]
[WhiteFideId "1114565"]
[BlackFideId "4179609"]
[WhiteElo "2098"]
[BlackElo "2550"]
[Result "1-0"]
[Round "09"]
[TimeControl "180+1"]
[Date "2022.08.09"]
[WhiteClock "0:00:28"]
[BlackClock "0:00:08"]

1. e4 {[%clk 0:03:00]}  c5 {[%clk 0:03:00]} 2. Nc3 {[%clk 0:02:59]}  g6 {[%clk 0:02:57]} 3. d4 {[%clk 0:02:52]}  Bg7 {[%clk 0:02:54]} 4. dxc5 {[%clk 0:02:52]}  Bxc3+ {[%clk 0:02:50]} 5. bxc3 {[%clk 0:02:52]}  Qa5 {[%clk 0:02:51]} 6. Ne2 {[%clk 0:02:52]}  Nc6 {[%clk 0:02:49]} 7. Be3 {[%clk 0:02:51]}  Nf6 {[%clk 0:02:48]} 8. f3 {[%clk 0:02:50]}  O-O {[%clk 0:02:44]} 9. Qd2 {[%clk 0:02:39]}  Rd8 {[%clk 0:02:43]} 10. Nc1 {[%clk 0:02:11]}  d5 {[%clk 0:02:21]} 11. Nb3 {[%clk 0:02:10]}  Qa3 {[%clk 0:02:09]} 12. Be2 {[%clk 0:01:54]}  dxe4 {[%clk 0:02:08]} 13. Qc1 {[%clk 0:01:54]}  Qxc1+ {[%clk 0:01:42]} 14. Rxc1 {[%clk 0:01:54]}  exf3 {[%clk 0:01:42]} 15. Bxf3 {[%clk 0:01:53]}  Ne5 {[%clk 0:01:42]} 16. Nd4 {[%clk 0:01:38]}  Nxf3+ {[%clk 0:01:40]} 17. gxf3 {[%clk 0:01:37]}  Nd5 {[%clk 0:01:40]} 18. Bd2 {[%clk 0:01:31]}  e5 {[%clk 0:01:38]} 19. Nb5 {[%clk 0:01:30]}  Bd7 {[%clk 0:01:35]} 20. Nd6 {[%clk 0:01:27]}  Bc6 {[%clk 0:01:33]} 21. Kf2 {[%clk 0:01:11]}  f6 {[%clk 0:01:32]} 22. h4 {[%clk 0:01:05]}  b6 {[%clk 0:01:32]} 23. Ne4 {[%clk 0:01:04]}  f5 {[%clk 0:01:24]} 24. Ng5 {[%clk 0:01:04]}  bxc5 {[%clk 0:01:24]} 25. Ne6 {[%clk 0:00:59]}  Re8 {[%clk 0:00:57]} 26. Nxc5 {[%clk 0:00:57]}  h5 {[%clk 0:00:29]} 27. Rhg1 {[%clk 0:00:51]}  Kf7 {[%clk 0:00:29]} 28. Rce1 {[%clk 0:00:51]}  Nb6 {[%clk 0:00:20]} 29. Bg5 {[%clk 0:00:44]}  Nc4 {[%clk 0:00:19]} 30. Rd1 {[%clk 0:00:44]}  Rac8 {[%clk 0:00:18]} 31. Rd6 {[%clk 0:00:43]}  Ba4 {[%clk 0:00:13]} 32. Rf6+ {[%clk 0:00:43]}  Kg7 {[%clk 0:00:14]} 33. Ne6+ {[%clk 0:00:43]}  Kh7 {[%clk 0:00:12]} 34. Rf7+ {[%clk 0:00:42]}  Kg8 {[%clk 0:00:11]} 35. Rg7+ {[%clk 0:00:33]}  Kh8 {[%clk 0:00:11]} 36. Bf6 {[%clk 0:00:33]}  Rxe6 {[%clk 0:00:11]} 37. R7xg6+ {[%clk 0:00:28]}  Rxf6 {[%clk 0:00:11]} 38. Rxf6 {[%clk 0:00:29]}  Bxc2 {[%clk 0:00:08]} 39. Rh6# {[%clk 0:00:28]} 1-0


[Site "https://www.chess.com"]

[Event "Titled Tuesday Blitz August 09 Early 2022"]
[White "Lagno, Kateryna"]
[Black "Vovk, Orest"]
[WhiteFideId "14109336"]
[BlackFideId "14113490"]
[WhiteElo "2522"]
[BlackElo "2203"]
[Result "0-1"]
[Round "09"]
[TimeControl "180+1"]
[Date "2022.08.09"]
[WhiteClock "0:00:15"]
[BlackClock "0:00:04"]

1. e4 {[%clk 0:02:57]}  g5 {[%clk 0:02:58]} 2. d4 {[%clk 0:02:56]}  h6 {[%clk 0:02:54]} 3. Nc3 {[%clk 0:02:55]}  Bg7 {[%clk 0:02:54]} 4. h4 {[%clk 0:02:51]}  g4 {[%clk 0:02:54]} 5. Qxg4 {[%clk 0:02:47]}  Bxd4 {[%clk 0:02:53]} 6. Nf3 {[%clk 0:02:47]}  Nf6 {[%clk 0:02:50]} 7. Qf4 {[%clk 0:02:45]}  Bxc3+ {[%clk 0:02:43]} 8. bxc3 {[%clk 0:02:44]}  d6 {[%clk 0:02:43]} 9. Bd3 {[%clk 0:02:35]}  Nc6 {[%clk 0:02:41]} 10. Bb2 {[%clk 0:02:33]}  Ng4 {[%clk 0:02:20]} 11. c4 {[%clk 0:02:27]}  e5 {[%clk 0:02:18]} 12. Qd2 {[%clk 0:02:28]}  Be6 {[%clk 0:02:12]} 13. O-O-O {[%clk 0:02:21]}  Qd7 {[%clk 0:02:07]} 14. h5 {[%clk 0:02:17]}  Ne7 {[%clk 0:02:00]} 15. Kb1 {[%clk 0:02:11]}  Qa4 {[%clk 0:01:56]} 16. Qe2 {[%clk 0:01:53]}  a6 {[%clk 0:01:49]} 17. a3 {[%clk 0:01:35]}  Rb8 {[%clk 0:01:47]} 18. Nd2 {[%clk 0:01:30]}  b5 {[%clk 0:01:44]} 19. cxb5 {[%clk 0:01:16]}  axb5 {[%clk 0:01:42]} 20. c3 {[%clk 0:01:15]}  c5 {[%clk 0:01:26]} 21. Bc2 {[%clk 0:01:15]}  Qa7 {[%clk 0:01:14]} 22. Nb3 {[%clk 0:00:55]}  c4 {[%clk 0:01:05]} 23. Nc1 {[%clk 0:00:49]}  Nxf2 {[%clk 0:01:04]} 24. Rhf1 {[%clk 0:00:44]}  Nxd1 {[%clk 0:01:04]} 25. Rxd1 {[%clk 0:00:45]}  Qc5 {[%clk 0:00:58]} 26. Na2 {[%clk 0:00:45]}  Rg8 {[%clk 0:00:53]} 27. Qd2 {[%clk 0:00:45]}  Rg5 {[%clk 0:00:48]} 28. Nb4 {[%clk 0:00:45]}  Rd8 {[%clk 0:00:42]} 29. Bc1 {[%clk 0:00:45]}  Rxh5 {[%clk 0:00:37]} 30. Qe2 {[%clk 0:00:43]}  Rh4 {[%clk 0:00:31]} 31. Be3 {[%clk 0:00:42]}  Qc8 {[%clk 0:00:27]} 32. Qf2 {[%clk 0:00:43]}  Ng6 {[%clk 0:00:24]} 33. Qf6 {[%clk 0:00:41]}  Qd7 {[%clk 0:00:17]} 34. Nd5 {[%clk 0:00:41]}  Bxd5 {[%clk 0:00:15]} 35. exd5 {[%clk 0:00:42]}  Qe7 {[%clk 0:00:14]} 36. Qf5 {[%clk 0:00:39]}  e4 {[%clk 0:00:08]} 37. Bd4 {[%clk 0:00:38]}  Qg5 {[%clk 0:00:06]} 38. Qf2 {[%clk 0:00:35]}  Rg4 {[%clk 0:00:06]} 39. Bf6 {[%clk 0:00:33]}  Rxg2 {[%clk 0:00:05]} 40. Qf1 {[%clk 0:00:33]}  Qg3 {[%clk 0:00:03]} 41. Bxd8 {[%clk 0:00:30]}  Kxd8 {[%clk 0:00:04]} 42. Bxe4 {[%clk 0:00:27]}  Rf2 {[%clk 0:00:03]} 43. Qe1 {[%clk 0:00:27]}  Qh2 {[%clk 0:00:03]} 44. Kc1 {[%clk 0:00:18]}  Ra2 {[%clk 0:00:02]} 45. Rd2 {[%clk 0:00:16]}  Qxd2+ {[%clk 0:00:02]} 46. Qxd2 {[%clk 0:00:16]}  Rxd2 {[%clk 0:00:03]} 47. Kxd2 {[%clk 0:00:17]}  Ne5 {[%clk 0:00:03]} 48. Ke3 {[%clk 0:00:17]}  Kc7 {[%clk 0:00:03]} 49. Kf4 {[%clk 0:00:18]}  Kb6 {[%clk 0:00:04]} 50. Kf5 {[%clk 0:00:15]}  Kc5 {[%clk 0:00:04]} 51. Kf6 {[%clk 0:00:16]}  h5 {[%clk 0:00:04]} 52. Kg5 {[%clk 0:00:16]}  Nd3 {[%clk 0:00:04]} 53. Kf6 {[%clk 0:00:14]}  Nf4 {[%clk 0:00:04]} 54. Kxf7 {[%clk 0:00:15]}  Nxd5 {[%clk 0:00:04]} 0-1


[Site "https://www.chess.com"]

[Event "Titled Tuesday Blitz August 09 Early 2022"]
[White "Legenia, Artem"]
[Black "Lakshmi C"]
[WhiteFideId "14136945"]
[BlackFideId "25035347"]
[WhiteElo "1936"]
[BlackElo "1775"]
[Result "1-0"]
[Round "09"]
[TimeControl "180+1"]
[Date "2022.08.09"]
[WhiteClock "0:00:09"]
[BlackClock "0:00:07"]

1. e4 {[%clk 0:02:52]}  c5 {[%clk 0:02:49]} 2. Nf3 {[%clk 0:02:50]}  Nc6 {[%clk 0:02:49]} 3. Bb5 {[%clk 0:02:50]}  g6 {[%clk 0:02:48]} 4. Bxc6 {[%clk 0:02:50]}  bxc6 {[%clk 0:02:47]} 5. O-O {[%clk 0:02:51]}  Bg7 {[%clk 0:02:47]} 6. Re1 {[%clk 0:02:51]}  d5 {[%clk 0:02:47]} 7. Nc3 {[%clk 0:02:51]}  e6 {[%clk 0:02:24]} 8. d3 {[%clk 0:02:45]}  Ne7 {[%clk 0:02:14]} 9. e5 {[%clk 0:02:30]}  Ba6 {[%clk 0:02:09]} 10. b3 {[%clk 0:02:23]}  c4 {[%clk 0:01:58]} 11. Ba3 {[%clk 0:02:20]}  cxd3 {[%clk 0:01:57]} 12. cxd3 {[%clk 0:02:20]}  O-O {[%clk 0:01:46]} 13. Na4 {[%clk 0:02:14]}  Re8 {[%clk 0:01:42]} 14. Nc5 {[%clk 0:02:12]}  Bc8 {[%clk 0:01:42]} 15. Rb1 {[%clk 0:02:00]}  Nf5 {[%clk 0:01:41]} 16. b4 {[%clk 0:01:47]}  Rb8 {[%clk 0:01:41]} 17. Qa4 {[%clk 0:01:46]}  Qb6 {[%clk 0:01:38]} 18. Rec1 {[%clk 0:01:42]}  h6 {[%clk 0:01:31]} 19. g3 {[%clk 0:01:34]}  g5 {[%clk 0:01:28]} 20. Rc2 {[%clk 0:01:33]}  g4 {[%clk 0:01:27]} 21. Ne1 {[%clk 0:01:29]}  Bxe5 {[%clk 0:01:26]} 22. Nb3 {[%clk 0:01:03]}  Bd7 {[%clk 0:01:12]} 23. Nc5 {[%clk 0:01:02]}  Bc8 {[%clk 0:01:08]} 24. Nb3 {[%clk 0:01:02]}  Bb7 {[%clk 0:00:58]} 25. Nc5 {[%clk 0:01:01]}  Nd4 {[%clk 0:00:57]} 26. Rd2 {[%clk 0:00:55]}  Bc8 {[%clk 0:00:54]} 27. Rc1 {[%clk 0:00:53]}  Bf6 {[%clk 0:00:50]} 28. Nb3 {[%clk 0:00:46]}  Bg5 {[%clk 0:00:27]} 29. Nxd4 {[%clk 0:00:41]}  Qxd4 {[%clk 0:00:27]} 30. Rdc2 {[%clk 0:00:35]}  Bxc1 {[%clk 0:00:18]} 31. Rxc1 {[%clk 0:00:35]}  Bd7 {[%clk 0:00:18]} 32. Qc2 {[%clk 0:00:30]}  Qg7 {[%clk 0:00:17]} 33. Ng2 {[%clk 0:00:28]}  e5 {[%clk 0:00:17]} 34. Bb2 {[%clk 0:00:23]}  d4 {[%clk 0:00:18]} 35. a3 {[%clk 0:00:23]}  Rb5 {[%clk 0:00:17]} 36. Qb3 {[%clk 0:00:19]}  Rd5 {[%clk 0:00:17]} 37. Qc4 {[%clk 0:00:18]}  Kh8 {[%clk 0:00:16]} 38. Nh4 {[%clk 0:00:18]}  f5 {[%clk 0:00:16]} 39. a4 {[%clk 0:00:18]}  Qf7 {[%clk 0:00:12]} 40. a5 {[%clk 0:00:17]}  Rc8 {[%clk 0:00:10]} 41. Qc2 {[%clk 0:00:16]}  Be6 {[%clk 0:00:10]} 42. Qe2 {[%clk 0:00:16]}  Rb5 {[%clk 0:00:10]} 43. Ba3 {[%clk 0:00:16]}  Re8 {[%clk 0:00:08]} 44. f3 {[%clk 0:00:16]}  gxf3 {[%clk 0:00:08]} 45. Nxf3 {[%clk 0:00:17]}  Bd7 {[%clk 0:00:08]} 46. Re1 {[%clk 0:00:15]}  Rd5 {[%clk 0:00:08]} 47. Nd2 {[%clk 0:00:15]}  Qe7 {[%clk 0:00:08]} 48. Nc4 {[%clk 0:00:15]}  e4 {[%clk 0:00:08]} 49. b5 {[%clk 0:00:15]}  Qe6 {[%clk 0:00:08]} 50. dxe4 {[%clk 0:00:14]}  fxe4 {[%clk 0:00:08]} 51. bxc6 {[%clk 0:00:13]}  Bxc6 {[%clk 0:00:08]} 52. Nd2 {[%clk 0:00:14]}  e3 {[%clk 0:00:08]} 53. Nf3 {[%clk 0:00:14]}  Rdd8 {[%clk 0:00:08]} 54. Bb2 {[%clk 0:00:13]}  Qe4 {[%clk 0:00:08]} 55. Rf1 {[%clk 0:00:11]}  Kg8 {[%clk 0:00:07]} 56. Qc4+ {[%clk 0:00:10]}  Bd5 {[%clk 0:00:07]} 57. Qc7 {[%clk 0:00:10]}  d3 {[%clk 0:00:07]} 58. Qg7# {[%clk 0:00:09]} 1-0


[Site "https://www.chess.com"]

[Event "Titled Tuesday Blitz August 09 Early 2022"]
[White "Livaic, Leon"]
[Black "Avinash, Ramesh"]
[WhiteFideId "14531534"]
[BlackFideId "45018340"]
[WhiteElo "2540"]
[BlackElo "1901"]
[Result "0-1"]
[Round "09"]
[TimeControl "180+1"]
[Date "2022.08.09"]
[WhiteClock "0:00:01"]
[BlackClock "0:00:55"]

1. d4 {[%clk 0:03:00]}  Nf6 {[%clk 0:02:58]} 2. c4 {[%clk 0:03:01]}  g6 {[%clk 0:02:58]} 3. Nc3 {[%clk 0:03:01]}  d5 {[%clk 0:02:59]} 4. Nf3 {[%clk 0:02:57]}  Bg7 {[%clk 0:02:58]} 5. h4 {[%clk 0:02:58]}  dxc4 {[%clk 0:02:52]} 6. e4 {[%clk 0:02:57]}  c5 {[%clk 0:02:52]} 7. d5 {[%clk 0:02:58]}  b5 {[%clk 0:02:48]} 8. h5 {[%clk 0:02:50]}  O-O {[%clk 0:02:47]} 9. hxg6 {[%clk 0:02:49]}  fxg6 {[%clk 0:02:43]} 10. e5 {[%clk 0:02:49]}  Ng4 {[%clk 0:02:41]} 11. d6 {[%clk 0:02:44]}  e6 {[%clk 0:02:41]} 12. Rxh7 {[%clk 0:02:44]}  Rf5 {[%clk 0:02:31]} 13. Rxg7+ {[%clk 0:02:16]}  Kxg7 {[%clk 0:02:30]} 14. Nxb5 {[%clk 0:02:16]}  Nc6 {[%clk 0:02:24]} 15. Nc7 {[%clk 0:01:48]}  Rb8 {[%clk 0:02:23]} 16. Bxc4 {[%clk 0:01:46]}  Ncxe5 {[%clk 0:02:20]} 17. b3 {[%clk 0:01:31]}  Rb6 {[%clk 0:01:57]} 18. Bb2 {[%clk 0:01:27]}  Kh7 {[%clk 0:01:49]} 19. Nxe5 {[%clk 0:01:21]}  Nxe5 {[%clk 0:01:48]} 20. Nxe6 {[%clk 0:00:53]}  Bxe6 {[%clk 0:01:43]} 21. Bxe6 {[%clk 0:00:54]}  Rxd6 {[%clk 0:01:43]} 22. Bxf5 {[%clk 0:00:54]}  Rxd1+ {[%clk 0:01:40]} 23. Rxd1 {[%clk 0:00:55]}  Qa5+ {[%clk 0:01:36]} 24. Kf1 {[%clk 0:00:54]}  Qa6+ {[%clk 0:01:32]} 25. Kg1 {[%clk 0:00:36]}  Nf3+ {[%clk 0:01:32]} 26. gxf3 {[%clk 0:00:36]}  gxf5 {[%clk 0:01:32]} 27. Rd7+ {[%clk 0:00:32]}  Kg6 {[%clk 0:01:29]} 28. a4 {[%clk 0:00:26]}  Qe2 {[%clk 0:01:24]} 29. Bc3 {[%clk 0:00:14]}  Qxf3 {[%clk 0:01:22]} 30. Be5 {[%clk 0:00:13]}  Qxb3 {[%clk 0:01:17]} 31. Rxa7 {[%clk 0:00:10]}  Qd1+ {[%clk 0:01:13]} 32. Kh2 {[%clk 0:00:11]}  Qe2 {[%clk 0:01:08]} 33. Bg3 {[%clk 0:00:05]}  f4 {[%clk 0:01:08]} 34. Bh4 {[%clk 0:00:02]}  Qg4 {[%clk 0:00:59]} 35. Ra6+ {[%clk 0:00:01]}  Kh5 {[%clk 0:00:56]} 36. Bd8 {[%clk 0:00:01]}  f3 {[%clk 0:00:55]} 37. Rd6 {[%clk 0:00:01]}  Qg2# {[%clk 0:00:55]} 0-1


[Site "https://www.chess.com"]